bitfinex-derivatives/quotes_ETHF0:USTF0_20260117
["timestamp","ask_amount","ask_price","bid_price","bid_amount"]
[1768648326737,0.98063741,3301.1,3299.8,0.98063741]
[1768648326938,0.92893273,3301.0,3299.8,0.98063741]
[1768648327137,0.92893273,3300.9,3299.8,0.98063741]
[1768648327336,0.92893273,3300.8,3299.8,0.98063741]
[1768648327637,0.98063741,3301.1,3299.8,0.98063741]
[1768648327839,0.92886249,3301.0,3299.8,0.98063741]
[1768648328039,0.92886249,3300.9,3299.8,0.98063741]
[1768648328240,0.92886249,3300.8,3299.8,0.98063741]
[1768648328439,0.98063741,3301.1,3299.8,0.98063741]
[1768648328632,0.92880088,3301.0,3299.8,0.98063741]
[1768648328830,0.92880088,3300.9,3299.8,0.98063741]
[1768648329029,0.92880088,3300.8,3299.8,0.98063741]
[1768648329243,0.98063741,3301.1,3299.8,0.98063741]
[1768648329435,1.18262902,3301.0,3299.8,0.98063741]
[1768648329635,1.18262902,3300.9,3299.8,0.98063741]
[1768648329845,0.92874694,3300.8,3299.8,0.98063741]
[1768648330141,0.98063741,3301.1,3299.8,0.98063741]
[1768648330440,1.18259083,3301.0,3299.8,0.98063741]
[1768648330641,1.18259083,3300.9,3299.8,0.98063741]
[1768648330843,0.92872193,3300.8,3299.8,0.98063741]
[1768648331141,0.98063741,3301.1,3299.8,0.98063741]
[1768648331342,1.18253793,3301.0,3299.8,0.98063741]
[1768648331540,1.18253793,3300.9,3299.8,0.98063741]
[1768648331741,0.98063741,3301.1,3299.8,0.98063741]
[1768648331942,1.18251474,3301.0,3299.8,0.98063741]
[1768648332141,1.18251474,3300.9,3299.8,0.98063741]
[1768648332343,0.98063741,3301.1,3299.8,0.98063741]
[1768648332541,1.18246895,3301.0,3299.8,0.98063741]
[1768648332741,1.18246895,3300.9,3299.8,0.98063741]
[1768648332938,0.98063741,3301.1,3299.8,0.98063741]
[1768648333138,1.18246895,3301.0,3299.8,0.98063741]
[1768648333343,1.18246895,3300.9,3299.8,0.98063741]
[1768648333542,0.98063741,3301.1,3299.8,0.98063741]
[1768648333843,1.18243006,3301.0,3299.8,0.98063741]
[1768648334041,1.18243006,3300.9,3299.8,0.98063741]
[1768648334245,0.98063741,3301.1,3299.8,0.98063741]
[1768648334541,1.1823976,3301.0,3299.8,0.98063741]
[1768648334746,1.1823976,3300.9,3299.8,0.98063741]
[1768648334948,0.98063741,3301.1,3299.8,0.98063741]
[1768648335141,1.18239758,3301.0,3299.8,0.98063741]
[1768648335343,1.18239758,3300.9,3299.8,0.98063741]
[1768648335543,0.98063741,3301.1,3299.8,0.98063741]
[1768648335749,1.18237721,3301.0,3299.8,0.98063741]
[1768648335949,1.18237721,3300.9,3299.8,0.98063741]
[1768648336151,0.92854903,3300.8,3299.8,0.98063741]
[1768648336352,0.92854903,3300.7,3299.8,0.98063741]
[1768648336555,0.98063741,3301.1,3299.8,0.98063741]
[1768648336755,1.18236726,3301.0,3299.8,0.98063741]
[1768648337054,1.18236726,3300.9,3299.8,0.98063741]
[1768648337256,0.92854117,3300.8,3299.8,0.98063741]
[1768648337449,0.92854117,3300.7,3299.8,0.98063741]
[1768648337755,0.98063741,3301.1,3299.8,0.98063741]
[1768648338054,1.18236456,3301.0,3299.8,0.98063741]
[1768648338254,1.18236456,3300.9,3299.8,0.98063741]
[1768648338457,0.92853903,3300.8,3299.8,0.98063741]
[1768648338753,0.92853903,3300.7,3299.8,0.98063741]
[1768648339056,0.98063741,3301.1,3299.8,0.98063741]
[1768648339250,0.92856266,3301.0,3299.8,0.98063741]
[1768648339451,0.92856266,3300.9,3299.8,0.98063741]
[1768648339646,0.92856266,3300.8,3299.5,40.93401108]
[1768648339848,0.92856266,3300.7,3299.6,0.98063741]
[1768648340148,0.98063741,3300.9,3299.6,0.98063741]
[1768648340456,0.92860447,3300.8,3299.6,0.98063741]
[1768648340651,0.92860447,3300.7,3299.6,0.98063741]
[1768648340859,0.98063741,3300.9,3299.6,0.98063741]
[1768648341048,0.92862033,3300.8,3299.6,0.98063741]
[1768648341248,0.92862033,3300.7,3299.6,0.98063741]
[1768648341448,0.98063741,3300.9,3299.6,0.98063741]
[1768648341657,0.92867428,3300.8,3299.6,0.98063741]
[1768648341858,0.92867428,3300.7,3299.6,0.98063741]
[1768648342155,0.98063741,3300.9,3299.6,0.98063741]
[1768648342356,0.92872168,3300.8,3299.6,0.98063741]
[1768648342656,0.92872168,3300.7,3299.6,0.98063741]
[1768648342856,0.98063741,3300.9,3299.6,0.98063741]
[1768648343058,0.9287399,3300.8,3299.6,0.98063741]
[1768648343257,0.9287399,3300.7,3299.6,0.98063741]
[1768648343460,0.98063741,3300.9,3299.6,0.98063741]
[1768648343660,0.92881858,3300.8,3299.6,0.98063741]
[1768648343954,0.98063741,3300.9,3299.6,0.98063741]
[1768648343955,0.92881858,3300.7,3299.6,0.98063741]
[1768648344159,0.92889426,3300.6,3299.6,0.98063741]
[1768648344360,0.98063741,3300.9,3299.6,0.98063741]
[1768648344561,0.92891285,3300.8,3299.6,0.98063741]
[1768648344857,0.98063741,3300.9,3299.6,0.98063741]
[1768648344858,0.92891285,3300.7,3299.6,0.98063741]
[1768648345047,0.92891285,3300.6,3299.6,0.98063741]
[1768648345252,0.98063741,3301.0,3299.6,0.98063741]
[1768648345448,0.92902598,3300.9,3299.6,0.98063741]
[1768648345653,0.92902598,3300.8,3299.6,0.98063741]
[1768648345853,0.98063741,3301.0,3299.6,0.98063741]
[1768648346060,0.92902612,3300.9,3299.6,0.98063741]
[1768648346368,0.92902612,3300.8,3299.6,0.98063741]
[1768648346671,0.13750697,3301.2,3299.6,0.98063741]
[1768648346855,1.18315889,3301.1,3299.8,0.98063741]
[1768648347050,1.18315889,3301.0,3299.8,0.98063741]
[1768648347262,0.92916252,3300.9,3299.8,0.98063741]
[1768648347461,0.92916252,3300.8,3299.8,0.98063741]
[1768648347762,1.11814438,3301.2,3299.8,0.98063741]
[1768648347966,1.18337936,3301.1,3299.8,0.98063741]
[1768648348165,1.18337936,3301.0,3299.8,0.98063741]
[1768648348364,0.92933555,3300.9,3299.8,0.98063741]
[1768648348665,0.92933555,3300.8,3299.8,0.98063741]
[1768648348857,0.92933555,3300.7,3299.8,0.98063741]
[1768648349059,1.11814438,3301.2,3299.8,0.98063741]
[1768648349254,1.18429897,3301.1,3299.8,0.98063741]
[1768648349459,1.18429897,3301.0,3299.8,0.98063741]
[1768648349658,1.18429897,3300.9,3299.8,0.98063741]
[1768648349856,0.93018624,3300.8,3299.8,0.98063741]
[1768648350062,0.93018624,3300.7,3299.8,0.98063741]
[1768648350258,1.11814438,3301.2,3299.8,0.98063741]
[1768648350461,1.18361253,3301.1,3299.8,0.98063741]
[1768648350661,1.18361253,3301.0,3299.8,0.98063741]
[1768648350861,1.18361253,3300.9,3299.8,0.98063741]
[1768648351164,0.92933717,3300.8,3299.8,0.98063741]
[1768648351465,0.92933717,3300.7,3299.8,0.98063741]
[1768648351666,1.11814438,3301.2,3299.8,0.98063741]
[1768648351867,1.18361154,3301.1,3299.8,0.98063741]
[1768648352066,1.18361154,3301.0,3299.8,0.98063741]
[1768648352266,1.18361154,3300.9,3299.8,0.98063741]
[1768648352466,0.92933638,3300.8,3299.8,0.98063741]
[1768648352765,0.92933638,3300.7,3299.8,0.98063741]
[1768648352966,1.11814438,3301.2,3299.8,0.98063741]
[1768648353164,1.18361075,3301.1,3299.8,0.98063741]
[1768648353367,1.18361075,3301.0,3299.5,0.13401108]
[1768648353567,1.18361075,3300.9,3299.5,0.13401108]
[1768648353768,0.92933577,3300.8,3299.5,0.13401108]
[1768648353962,0.92933577,3300.7,3299.5,0.13401108]
[1768648354167,0.92933577,3300.6,3299.5,0.13401108]
[1768648354370,0.14132886,3301.1,3299.5,0.13401108]
[1768648354571,1.18345484,3301.0,3299.5,0.13401108]
[1768648354765,1.18345484,3300.9,3299.5,0.13401108]
[1768648354966,0.92917974,3300.8,3299.5,0.13401108]
[1768648355163,0.92917974,3300.7,3299.5,0.13401108]
[1768648355357,0.92917974,3300.6,3299.5,0.13401108]
[1768648355558,0.14132886,3301.1,3299.5,0.13401108]
[1768648355758,1.18339095,3301.0,3299.5,0.13401108]
[1768648356062,1.18339095,3300.9,3299.5,0.13401108]
[1768648356262,0.92911576,3300.8,3299.5,0.13401108]
[1768648356463,0.92911576,3300.7,3299.5,0.13401108]
[1768648356664,0.14132886,3301.1,3299.5,0.13401108]
[1768648356865,1.18334762,3301.0,3299.5,0.13401108]
[1768648357064,1.18334762,3300.9,3299.5,0.13401108]
[1768648357272,0.92907232,3300.8,3299.5,0.13401108]
[1768648357576,0.92907232,3300.7,3299.5,0.13401108]
[1768648357769,0.14132886,3301.1,3299.5,0.13401108]
[1768648358070,1.18334758,3301.0,3299.5,0.13401108]
[1768648358263,1.18334758,3300.9,3299.5,0.13401108]
[1768648358465,0.92907215,3300.8,3299.5,0.13401108]
[1768648358762,0.92907215,3300.7,3299.5,0.13401108]
[1768648358962,0.14132886,3301.0,3299.5,0.13401108]
[1768648359175,1.18334805,3300.9,3299.5,0.13401108]
[1768648359380,0.92907235,3300.8,3299.5,0.13401108]
[1768648359673,0.92907235,3300.7,3299.5,0.13401108]
[1768648359874,0.14132886,3301.0,3299.5,0.13401108]
[1768648360178,1.32467679,3300.9,3299.5,0.13401108]
[1768648360380,0.9290724,3300.8,3299.5,0.13401108]
[1768648362172,0.9290724,3300.8,3299.4,40.8]
[1768648362173,1.07040126,3300.8,3299.4,44.492]
[1768648362372,0.9290724,3300.7,3299.4,44.492]
[1768648371486,0.9290724,3300.7,3299.4,3.692]
[1768648412423,0.9290724,3300.7,3299.3,44.84798571]
[1768648413323,0.9290724,3300.7,3299.5,0.98042697]
[1768648419426,0.9290724,3300.6,3299.5,0.98042697]
[1768648419617,0.98042697,3300.9,3299.5,0.98042697]
[1768648419816,1.17926272,3300.8,3299.5,0.98042697]
[1768648420017,0.92501373,3300.7,3299.5,0.98042697]
[1768648420220,0.92501373,3300.6,3299.5,0.98042697]
[1768648420423,0.98042697,3300.9,3299.5,0.98042697]
[1768648420624,1.1792629,3300.8,3299.5,0.98042697]
[1768648420819,0.92501378,3300.7,3299.5,0.98042697]
[1768648421018,0.92501378,3300.6,3299.5,0.98042697]
[1768648421219,0.98042697,3300.9,3299.5,0.98042697]
[1768648421423,1.17926322,3300.8,3299.5,0.98042697]
[1768648421625,0.92501378,3300.7,3299.5,0.98042697]
[1768648421824,0.92501378,3300.6,3299.5,0.98042697]
[1768648422027,0.98042697,3300.9,3299.5,0.98042697]
[1768648422230,1.17926476,3300.8,3299.5,0.98042697]
[1768648422427,0.92501473,3300.7,3299.5,0.98042697]
[1768648422724,0.92501473,3300.6,3299.5,0.98042697]
[1768648422924,0.98042697,3300.9,3299.5,0.98042697]
[1768648423127,1.17926642,3300.8,3299.5,0.98042697]
[1768648423425,0.92501639,3300.7,3299.5,0.98042697]
[1768648423625,0.92501639,3300.6,3299.5,0.98042697]
[1768648423925,0.98042697,3300.9,3299.5,0.98042697]
[1768648424225,1.1792697,3300.8,3299.5,0.98042697]
[1768648424424,0.92501888,3300.7,3299.5,0.98042697]
[1768648424622,0.92501888,3300.6,3299.5,0.98042697]
[1768648424823,0.98042697,3300.9,3299.5,0.98042697]
[1768648425026,0.92499363,3300.8,3299.5,0.98042697]
[1768648425224,0.92499363,3300.7,3299.7,0.98042697]
[1768648425526,0.92499363,3300.6,3299.7,0.98042697]
[1768648425730,0.98042697,3300.9,3299.7,0.98042697]
[1768648425928,0.9249946,3300.8,3299.7,0.98042697]
[1768648426231,0.9249946,3300.7,3299.7,0.98042697]
[1768648426527,0.98042697,3301.1,3299.7,0.98042697]
[1768648426722,1.17925014,3301.0,3299.7,0.98042697]
[1768648426923,1.17925014,3300.9,3299.7,0.98042697]
[1768648427126,0.92499399,3300.8,3299.7,0.98042697]
[1768648427432,1.12050118,3301.1,3299.7,0.98042697]
[1768648427433,0.92499399,3300.7,3299.7,0.98042697]
[1768648427635,1.12050118,3301.1,3299.7,0.98042697]
[1768648427834,1.17924969,3301.0,3299.7,0.98042697]
[1768648428034,1.17924969,3300.9,3299.7,0.98042697]
[1768648428238,0.92499364,3300.8,3299.7,0.98042697]
[1768648428535,0.92499364,3300.7,3299.7,0.98042697]
[1768648428735,1.12050118,3301.1,3299.7,0.98042697]
[1768648428934,1.17924904,3301.0,3299.7,0.98042697]
[1768648429126,0.92499311,3300.9,3299.7,0.98042697]
[1768648429327,0.92499311,3300.8,3299.7,0.98042697]
[1768648429528,0.92499311,3300.7,3299.7,0.98042697]
[1768648429732,1.12050118,3301.1,3299.7,0.98042697]
[1768648429927,1.17924855,3301.0,3299.7,0.98042697]
[1768648430128,0.92499272,3300.9,3299.7,0.98042697]
[1768648430436,0.92499272,3300.8,3299.7,0.98042697]
[1768648430636,0.92499272,3300.7,3299.7,0.98042697]
[1768648430829,1.12050118,3301.1,3299.7,0.98042697]
[1768648431028,1.17924813,3301.0,3299.7,0.98042697]
[1768648431327,0.92499241,3300.9,3299.7,0.98042697]
[1768648431534,0.92499241,3300.8,3299.7,0.98042697]
[1768648431735,0.92499241,3300.7,3299.7,0.98042697]
[1768648431941,0.14007421,3301.1,3299.7,0.98042697]
[1768648432129,1.17924645,3301.0,3299.7,0.98042697]
[1768648432328,0.92499131,3300.9,3299.7,0.98042697]
[1768648432526,0.92499131,3300.8,3299.7,0.98042697]
[1768648432728,0.92499131,3300.7,3299.7,0.98042697]
[1768648432930,0.14007421,3301.1,3299.7,0.98042697]
[1768648433132,1.17923764,3301.0,3299.7,0.98042697]
[1768648433430,0.92498429,3300.9,3299.7,0.98042697]
[1768648433632,0.92498429,3300.8,3299.7,0.98042697]
[1768648433830,0.92498429,3300.7,3299.7,0.98042697]
[1768648434139,0.14007421,3301.1,3299.6,0.98042697]
[1768648434339,2.15965648,3301.0,3299.6,0.98042697]
[1768648434530,0.92497898,3300.9,3299.6,0.98042697]
[1768648434731,0.92497898,3300.8,3299.6,0.98042697]
[1768648434931,0.92497898,3300.7,3299.6,0.98042697]
[1768648435134,0.98042697,3301.0,3299.6,0.98042697]
[1768648435334,0.92497385,3300.9,3299.6,0.98042697]
[1768648435641,0.92497385,3300.8,3299.6,0.98042697]
[1768648435832,0.92497385,3300.7,3299.6,0.98042697]
[1768648436036,0.98042697,3301.0,3299.6,0.98042697]
[1768648436237,0.92496821,3300.9,3299.6,0.98042697]
[1768648436541,0.92496821,3300.8,3299.6,0.98042697]
[1768648436734,0.92496821,3300.7,3299.6,0.98042697]
[1768648436936,0.98042697,3301.0,3299.6,0.98042697]
[1768648437138,0.92496112,3300.9,3299.6,0.98042697]
[1768648437446,0.92496112,3300.8,3299.6,0.98042697]
[1768648437649,0.92496112,3300.7,3299.6,0.98042697]
[1768648437835,0.98042697,3301.0,3299.6,0.98042697]
[1768648438129,0.92495547,3300.9,3299.6,0.98042697]
[1768648438332,0.92495547,3300.8,3299.6,0.98042697]
[1768648438539,0.92495547,3300.7,3299.6,0.98042697]
[1768648438741,0.98042697,3301.0,3299.6,0.98042697]
[1768648438938,0.92495141,3300.9,3299.6,0.98042697]
[1768648439238,0.92495141,3300.8,3299.6,0.98042697]
[1768648439430,0.92495141,3300.7,3299.6,0.98042697]
[1768648439633,0.98042697,3301.0,3299.6,0.98042697]
[1768648439834,0.92368572,3300.9,3299.6,0.98042697]
[1768648440129,0.92368572,3300.8,3299.6,0.98042697]
[1768648440334,0.92368572,3300.7,3299.6,0.98042697]
[1768648440534,0.98042697,3301.0,3299.3,44.86998571]
[1768648440730,0.9236855,3300.9,3299.5,0.98042697]
[1768648441031,0.9236855,3300.8,3299.5,0.98042697]
[1768648441237,0.9236855,3300.7,3299.5,0.98042697]
[1768648441437,1.12130831,3301.0,3299.5,0.98042697]
[1768648441637,0.92368487,3300.9,3299.5,0.98042697]
[1768648441833,0.92368487,3300.8,3299.5,0.98042697]
[1768648442033,0.92368487,3300.7,3299.5,0.98042697]
[1768648442237,1.12130831,3301.0,3299.5,0.98042697]
[1768648442437,0.92368458,3300.9,3299.5,0.98042697]
[1768648442649,0.92368458,3300.8,3299.5,0.98042697]
[1768648442837,0.92368458,3300.7,3299.5,0.98042697]
[1768648443038,1.12130831,3301.0,3299.5,0.98042697]
[1768648443239,0.92368561,3300.9,3299.5,0.98042697]
[1768648443440,0.92368561,3300.8,3299.5,0.98042697]
[1768648443740,0.92368561,3300.7,3299.5,0.98042697]
[1768648443940,1.12130831,3301.0,3299.5,0.98042697]
[1768648444141,0.92368761,3300.9,3299.5,0.98042697]
[1768648444341,0.92368761,3300.8,3299.5,0.98042697]
[1768648444537,0.92368761,3300.7,3299.5,0.98042697]
[1768648444745,1.12130831,3301.0,3299.5,0.98042697]
[1768648444946,0.92369154,3300.9,3299.5,0.98042697]
[1768648445145,0.92369154,3300.8,3299.5,0.98042697]
[1768648445348,0.92369154,3300.7,3299.5,0.98042697]
[1768648445549,1.12130831,3301.0,3299.5,0.98042697]
[1768648445746,0.92369713,3300.9,3299.5,0.98042697]
[1768648445947,0.92369713,3300.8,3299.5,0.98042697]
[1768648446150,0.92369713,3300.7,3299.5,0.98042697]
[1768648446353,1.12130831,3301.0,3299.5,0.98042697]
[1768648446654,0.9237041,3300.9,3299.5,0.98042697]
[1768648446853,0.9237041,3300.8,3299.5,0.98042697]
[1768648447151,0.9237041,3300.7,3299.5,0.98042697]
[1768648447357,1.12130831,3301.0,3299.5,0.98042697]
[1768648447546,0.9237131,3300.9,3299.5,0.98042697]
[1768648447743,0.9237131,3300.8,3299.5,0.98042697]
[1768648447939,0.9237131,3300.7,3299.5,0.98042697]
[1768648448144,1.12130831,3301.0,3299.5,0.98042697]
[1768648448346,0.9237149,3300.9,3299.5,0.98042697]
[1768648448641,0.9237149,3300.8,3299.5,0.98042697]
[1768648448841,0.9237149,3300.7,3299.5,0.98042697]
[1768648449054,1.12130831,3301.0,3299.5,0.98042697]
[1768648449254,0.92372597,3300.9,3299.5,0.98042697]
[1768648449442,0.92372597,3300.8,3299.5,0.98042697]
[1768648449648,0.92372597,3300.7,3299.5,0.98042697]
[1768648449945,1.12130831,3301.0,3299.5,0.98042697]
[1768648450145,0.92373585,3300.9,3299.5,0.98042697]
[1768648450346,0.92373585,3300.8,3299.5,0.98042697]
[1768648450641,0.92373585,3300.7,3299.5,0.98042697]
[1768648450843,1.12130831,3301.0,3299.5,0.98042697]
[1768648451145,0.92375028,3300.9,3299.5,0.98042697]
[1768648451444,0.92375028,3300.8,3299.5,0.98042697]
[1768648451647,0.92375028,3300.7,3299.5,0.98042697]
[1768648451846,1.12130831,3301.0,3299.5,0.98042697]
[1768648452046,0.92376776,3300.9,3299.5,0.98042697]
[1768648452252,0.92376776,3300.8,3299.5,0.98042697]
[1768648452449,0.92376776,3300.7,3299.5,0.98042697]
[1768648452658,0.14088134,3301.0,3299.5,0.98042697]
[1768648452854,0.92379005,3300.9,3299.5,1.11357822]
[1768648453055,0.92379005,3300.8,3299.5,1.11357822]
[1768648453255,0.92379005,3300.7,3299.5,1.11357822]
[1768648453456,0.14088134,3301.0,3299.5,1.11357822]
[1768648453656,0.92381922,3300.9,3299.5,1.11357822]
[1768648453850,0.92381922,3300.8,3299.7,0.98042697]
[1768648454050,0.92381922,3300.7,3299.7,0.98042697]
[1768648454251,0.14088134,3301.0,3299.7,0.98042697]
[1768648454550,0.92382036,3300.9,3299.7,0.98042697]
[1768648454751,0.92382036,3300.8,3299.7,0.98042697]
[1768648454950,0.92382036,3300.7,3299.7,0.98042697]
[1768648455160,0.14088134,3301.0,3299.7,0.98042697]
[1768648455352,0.92386955,3300.9,3299.6,0.98042697]
[1768648455552,0.92386955,3300.8,3299.6,0.98042697]
[1768648455752,0.92386955,3300.7,3299.6,0.98042697]
[1768648456055,0.92386955,3300.6,3299.6,0.98042697]
[1768648456361,0.14088134,3301.0,3299.6,0.98042697]
[1768648456560,0.92387711,3300.9,3299.6,0.98042697]
[1768648456754,0.92387711,3300.8,3299.6,0.98042697]
[1768648456952,0.92387711,3300.7,3299.6,0.98042697]
[1768648457156,0.92387711,3300.6,3299.6,0.98042697]
[1768648457451,0.14088134,3301.0,3299.6,0.98042697]
[1768648457656,0.92388087,3300.9,3299.6,0.98042697]
[1768648457858,0.92388087,3300.8,3299.6,0.98042697]
[1768648458158,0.92388087,3300.7,3299.6,0.98042697]
[1768648458357,0.92388087,3300.6,3299.6,0.98042697]
[1768648458658,0.14088134,3301.0,3299.6,0.98042697]
[1768648458859,0.92388496,3300.9,3299.6,0.98042697]
[1768648459058,0.92388496,3300.8,3299.6,0.98042697]
[1768648459260,0.92388496,3300.7,3299.6,0.98042697]
[1768648459460,0.92388496,3300.6,3299.6,0.98042697]
[1768648459761,0.14088134,3301.0,3299.6,0.98042697]
[1768648459966,0.92388909,3300.9,3299.6,0.98042697]
[1768648460257,0.92388909,3300.8,3299.6,0.98042697]
[1768648460463,0.00391254,3301.2,3300.0,0.98042697]
[1768648460663,0.92382329,3301.1,3300.0,0.98042697]
[1768648460849,0.92382329,3301.0,3300.0,0.98042697]
[1768648461053,0.92382329,3300.9,3300.0,0.98042697]
[1768648461254,0.00391254,3301.2,3300.0,0.98042697]
[1768648461555,0.9234519,3301.1,3300.0,0.98042697]
[1768648461754,0.9234519,3301.0,3300.0,0.98042697]
[1768648461958,0.9234519,3300.9,3300.0,0.98042697]
[1768648462154,0.00391254,3301.2,3300.0,0.98042697]
[1768648462462,0.92328635,3301.1,3300.0,0.98042697]
[1768648462665,0.92328635,3301.0,3300.0,0.98042697]
[1768648462858,0.92328635,3300.9,3300.0,0.98042697]
[1768648463153,0.00391254,3301.2,3300.0,0.98042697]
[1768648463359,0.92317053,3301.1,3300.0,0.98042697]
[1768648463558,0.92317053,3301.0,3300.0,0.98042697]
[1768648463758,0.92317053,3300.9,3300.0,0.98042697]
[1768648463960,0.00391254,3301.2,3300.0,0.98042697]
[1768648464159,0.92316014,3301.1,3300.0,0.98042697]
[1768648464463,0.92316014,3301.0,3300.0,0.98042697]
[1768648464663,0.92316014,3300.9,3300.0,0.98042697]
[1768648464964,0.00391254,3301.2,3300.0,0.98042697]
[1768648465160,0.92306791,3301.1,3300.0,0.98042697]
[1768648465353,0.92306791,3301.0,3300.0,0.98042697]
[1768648465554,0.92306791,3300.9,3300.0,0.98042697]
[1768648465754,0.00391254,3301.2,3300.0,0.98042697]
[1768648465958,0.9229915,3301.1,3300.0,0.98042697]
[1768648466159,0.00391254,3301.2,3300.0,0.98042697]
[1768648466455,0.92294013,3301.1,3300.0,0.98042697]
[1768648466763,0.00391254,3301.2,3300.0,0.98042697]
[1768648466964,0.92292821,3301.1,3300.0,0.98042697]
[1768648467263,0.00391254,3301.2,3300.0,0.98042697]
[1768648467451,0.92287544,3301.1,3300.0,0.98042697]
[1768648467654,0.00391254,3301.2,3300.0,0.98042697]
[1768648467856,0.92287542,3301.1,3300.0,0.98042697]
[1768648468155,0.00391254,3301.2,3300.0,0.98042697]
[1768648468355,0.9228426,3301.1,3300.0,0.98042697]
[1768648468554,0.00391254,3301.2,3300.0,0.98042697]
[1768648468756,0.92283144,3301.1,3300.0,0.98042697]
[1768648468956,0.00391254,3301.2,3300.0,0.98042697]
[1768648469255,0.92283114,3301.1,3300.0,0.98042697]
[1768648469457,0.00391254,3301.2,3300.0,0.98042697]
[1768648469659,0.92279393,3301.1,3300.0,0.98042697]
[1768648469862,0.00391254,3301.2,3300.0,0.98042697]
[1768648470164,0.92310929,3301.1,3300.0,0.98042697]
[1768648470354,0.00391254,3301.2,3300.0,0.98042697]
[1768648470552,0.92308829,3301.1,3299.8,0.98042697]
[1768648470758,0.98042697,3301.1,3299.8,0.98042697]
[1768648472266,0.00391254,3301.2,3299.8,0.98042697]
[1768648472567,0.92304548,3301.1,3299.8,0.98042697]
[1768648472767,0.98433951,3301.2,3299.8,0.98042697]
[1768648472966,0.92304551,3301.1,3299.8,0.98042697]
[1768648473168,0.98433951,3301.2,3299.8,0.98042697]
[1768648473365,0.92303232,3301.1,3299.8,0.98042697]
[1768648473567,0.00391254,3301.2,3299.8,0.98042697]
[1768648473768,0.92303233,3301.1,3299.8,0.98042697]
[1768648473968,0.00391254,3301.2,3299.8,0.98042697]
[1768648474169,0.92303232,3301.1,3299.8,0.98042697]
[1768648474469,0.00391254,3301.2,3299.8,0.98042697]
[1768648474668,0.92302429,3301.1,3299.8,0.98042697]
[1768648474860,0.00391254,3301.2,3299.8,0.98042697]
[1768648475061,0.92302428,3301.1,3299.8,0.98042697]
[1768648475255,0.00391254,3301.2,3299.7,0.13315125]
[1768648475461,0.92302142,3301.1,3299.7,0.13315125]
[1768648475760,0.00391254,3301.2,3299.7,0.13315125]
[1768648475960,0.92302146,3301.1,3299.7,0.13315125]
[1768648476159,0.00391254,3301.2,3299.7,0.13315125]
[1768648476360,0.92302379,3301.1,3299.7,0.13315125]
[1768648476659,0.00391254,3301.2,3299.7,0.13315125]
[1768648476860,0.92302378,3301.1,3299.7,0.13315125]
[1768648477060,0.00391254,3301.2,3299.7,0.13315125]
[1768648477359,0.92303124,3301.1,3299.7,0.13315125]
[1768648477563,0.00391254,3301.2,3299.7,0.13315125]
[1768648477761,0.92303124,3301.1,3299.7,0.13315125]
[1768648477973,0.00391254,3301.2,3299.7,0.13315125]
[1768648478167,0.92303133,3301.1,3299.7,0.13315125]
[1768648478463,0.00391254,3301.2,3299.7,0.13315125]
[1768648478665,0.92304395,3301.1,3299.7,0.13315125]
[1768648478856,0.00391254,3301.2,3299.7,0.13315125]
[1768648479061,0.92304392,3301.1,3299.7,0.13315125]
[1768648479264,0.00391254,3301.2,3299.7,0.13315125]
[1768648479466,0.92306209,3301.1,3299.7,0.13315125]
[1768648479665,0.00391254,3301.2,3299.7,0.13315125]
[1768648479867,0.92306206,3301.1,3299.7,0.13315125]
[1768648480068,0.00391254,3301.2,3299.7,0.13315125]
[1768648480271,0.92308609,3301.1,3299.7,0.13315125]
[1768648480569,0.00391254,3301.2,3299.7,0.13315125]
[1768648480769,0.92308611,3301.1,3299.7,0.13315125]
[1768648481068,0.00391254,3301.2,3299.7,0.13315125]
[1768648481268,0.92311622,3301.1,3299.7,0.13315125]
[1768648481471,0.00391254,3301.2,3299.7,0.13315125]
[1768648481667,0.92311623,3301.1,3299.7,0.13315125]
[1768648481871,0.00391254,3301.2,3299.7,0.13315125]
[1768648482069,0.92311625,3301.1,3299.7,0.13315125]
[1768648482259,0.00391254,3301.2,3299.7,0.13315125]
[1768648482463,0.92315328,3301.1,3299.7,0.13315125]
[1768648482758,0.00391254,3301.2,3299.7,0.13315125]
[1768648482965,0.92315328,3301.1,3299.7,0.13315125]
[1768648483260,0.00391254,3301.2,3299.7,0.13315125]
[1768648483459,0.92319595,3301.1,3299.7,0.13315125]
[1768648483661,0.00391254,3301.2,3299.7,0.13315125]
[1768648483870,0.92319592,3301.1,3299.7,0.13315125]
[1768648484071,0.00391254,3301.2,3299.7,0.13315125]
[1768648484270,0.92324812,3301.1,3299.7,0.13315125]
[1768648484470,0.00391254,3301.2,3299.7,0.13315125]
[1768648484670,0.92324811,3301.1,3299.7,0.13315125]
[1768648484871,0.00391254,3301.2,3299.7,0.13315125]
[1768648485071,0.92324812,3301.1,3299.7,0.13315125]
[1768648485273,0.00391254,3301.2,3299.7,0.13315125]
[1768648485477,0.92330689,3301.1,3299.7,0.13315125]
[1768648485673,0.00391254,3301.2,3299.7,0.13315125]
[1768648485872,0.92330704,3301.1,3299.7,0.13315125]
[1768648486081,0.00391254,3301.2,3299.7,0.13315125]
[1768648486270,0.92338059,3301.1,3299.7,0.13315125]
[1768648486473,0.00391254,3301.2,3299.7,0.13315125]
[1768648486675,0.92338019,3301.1,3299.7,0.13315125]
[1768648486879,0.00391254,3301.2,3299.7,0.13315125]
[1768648487082,0.92338015,3301.1,3299.7,0.13315125]
[1768648487374,0.00391254,3301.2,3299.7,0.13315125]
[1768648487578,0.92347111,3301.1,3299.7,0.13315125]
[1768648487876,0.00391254,3301.2,3299.7,0.13315125]
[1768648488070,0.92347111,3301.1,3299.7,0.13315125]
[1768648488271,0.00391254,3301.2,3299.7,0.13315125]
[1768648488470,0.92358752,3301.1,3299.7,0.13315125]
[1768648488671,0.92358752,3301.0,3299.7,0.13315125]
[1768648488871,0.00391254,3301.2,3299.7,0.13315125]
[1768648489072,0.92358752,3301.1,3299.7,0.13315125]
[1768648489273,0.00391254,3301.2,3299.7,0.13315125]
[1768648489478,0.92374215,3301.1,3299.7,0.13315125]
[1768648489677,0.00391254,3301.2,3299.7,0.13315125]
[1768648489878,0.92374215,3301.1,3299.7,0.13315125]
[1768648490073,0.92405849,3301.0,3299.7,0.13315125]
[1768648490270,0.00391254,3301.2,3299.7,0.13315125]
[1768648490469,0.9240585,3301.1,3299.7,0.13315125]
[1768648490671,0.9240585,3301.0,3299.7,0.13315125]
[1768648490886,0.00391254,3301.2,3299.7,0.13315125]
[1768648491084,0.92405854,3301.1,3299.7,0.13315125]
[1768648491271,0.92405854,3301.0,3299.7,0.13315125]
[1768648491476,0.00391254,3301.2,3299.7,0.13315125]
[1768648491677,0.92403848,3301.1,3299.7,0.13315125]
[1768648491878,0.92403848,3301.0,3299.7,0.13315125]
[1768648492187,0.00391254,3301.2,3299.7,0.13315125]
[1768648492489,0.92402119,3301.1,3299.7,0.13315125]
[1768648492689,0.92402119,3301.0,3299.7,0.13315125]
[1768648492892,0.00391254,3301.2,3299.7,0.13315125]
[1768648493093,0.92402119,3301.1,3299.7,0.13315125]
[1768648493394,0.92402119,3301.0,3299.7,0.13315125]
[1768648493594,0.00391254,3301.2,3299.7,0.13315125]
[1768648493790,0.92400783,3301.1,3299.7,0.13315125]
[1768648493992,0.92400783,3301.0,3299.7,0.13315125]
[1768648494190,0.00391254,3301.2,3299.7,0.13315125]